{"text_format":"1","workbook":"xlsx","n_sheets":2,"sheets":["INVENTARIO","ENTRADAS Y SALIDAS"],"not_rendered":{"charts":0,"images":1,"macros":1,"external_links":1,"defined_names":6,"comments":0,"pivot_tables":0},"unopened":[],"bounds":{"document_bytes":16777216,"sheet_cells":100000,"rows_first":2000,"rows_last":500,"rows_between":2000,"halvings":0,"cell_chars":16384,"cell_head_chars":4096},"cells_cut":0,"cells_raw":0,"read":"whole","date_system":"1900"}

{"sheet":"INVENTARIO","index":0,"n_rows":34,"n_cols":5,"rows_kept":34,"cut":false,"hidden":false,"merged":[[4,0,5,4]]}
[]
[null,null,"ESPACIO PARA LOGO O ENCABEZADO DE LA EMPRESA"]
[]
[]
["INVENTARIO"]
[]
["CODIGO","PRODUCTO","STOCK","ENTRADAS","SALIDAS"]
[null,null,{"$f":"+MINIBAR[[#This Row],[ENTRADAS]]-MINIBAR[[#This Row],[SALIDAS]]","v":0},{"$f":"SUMIF(ENTRADAS[CODIGO],MINIBAR[[#This Row],[CODIGO]],ENTRADAS[CANTIDAD])","v":0},{"$f":"SUMIF(SALIDAS[CODIGO],MINIBAR[[#This Row],[CODIGO]],SALIDAS[CANTIDAD])","v":0}]
["BC","CERVEZAS",{"$f":"+MINIBAR[[#This Row],[ENTRADAS]]-MINIBAR[[#This Row],[SALIDAS]]","v":2},{"$f":"SUMIF(ENTRADAS[CODIGO],MINIBAR[[#This Row],[CODIGO]],ENTRADAS[CANTIDAD])","v":2},{"$f":"SUMIF(SALIDAS[CODIGO],MINIBAR[[#This Row],[CODIGO]],SALIDAS[CANTIDAD])","v":0}]
["BCA","CERVEZA  ARTESANAL",{"$f":"+MINIBAR[[#This Row],[ENTRADAS]]-MINIBAR[[#This Row],[SALIDAS]]","v":0},{"$f":"SUMIF(ENTRADAS[CODIGO],MINIBAR[[#This Row],[CODIGO]],ENTRADAS[CANTIDAD])","v":0},{"$f":"SUMIF(SALIDAS[CODIGO],MINIBAR[[#This Row],[CODIGO]],SALIDAS[CANTIDAD])","v":0}]
["BAG","AGUA GRANDE",{"$f":"+MINIBAR[[#This Row],[ENTRADAS]]-MINIBAR[[#This Row],[SALIDAS]]","v":0},{"$f":"SUMIF(ENTRADAS[CODIGO],MINIBAR[[#This Row],[CODIGO]],ENTRADAS[CANTIDAD])","v":0},{"$f":"SUMIF(SALIDAS[CODIGO],MINIBAR[[#This Row],[CODIGO]],SALIDAS[CANTIDAD])","v":0}]
["BAP","AGUA PEQUEÑA",{"$f":"+MINIBAR[[#This Row],[ENTRADAS]]-MINIBAR[[#This Row],[SALIDAS]]","v":0},{"$f":"SUMIF(ENTRADAS[CODIGO],MINIBAR[[#This Row],[CODIGO]],ENTRADAS[CANTIDAD])","v":0},{"$f":"SUMIF(SALIDAS[CODIGO],MINIBAR[[#This Row],[CODIGO]],SALIDAS[CANTIDAD])","v":0}]
["BAA","AGUA ALOE",{"$f":"+MINIBAR[[#This Row],[ENTRADAS]]-MINIBAR[[#This Row],[SALIDAS]]","v":0},{"$f":"SUMIF(ENTRADAS[CODIGO],MINIBAR[[#This Row],[CODIGO]],ENTRADAS[CANTIDAD])","v":0},{"$f":"SUMIF(SALIDAS[CODIGO],MINIBAR[[#This Row],[CODIGO]],SALIDAS[CANTIDAD])","v":0}]
["BJ","JUGOS",{"$f":"+MINIBAR[[#This Row],[ENTRADAS]]-MINIBAR[[#This Row],[SALIDAS]]","v":0},{"$f":"SUMIF(ENTRADAS[CODIGO],MINIBAR[[#This Row],[CODIGO]],ENTRADAS[CANTIDAD])","v":0},{"$f":"SUMIF(SALIDAS[CODIGO],MINIBAR[[#This Row],[CODIGO]],SALIDAS[CANTIDAD])","v":0}]
["BCC","COCA COLA",{"$f":"+MINIBAR[[#This Row],[ENTRADAS]]-MINIBAR[[#This Row],[SALIDAS]]","v":0},{"$f":"SUMIF(ENTRADAS[CODIGO],MINIBAR[[#This Row],[CODIGO]],ENTRADAS[CANTIDAD])","v":0},{"$f":"SUMIF(SALIDAS[CODIGO],MINIBAR[[#This Row],[CODIGO]],SALIDAS[CANTIDAD])","v":0}]
["BE","ENERGIZANTE",{"$f":"+MINIBAR[[#This Row],[ENTRADAS]]-MINIBAR[[#This Row],[SALIDAS]]","v":0},{"$f":"SUMIF(ENTRADAS[CODIGO],MINIBAR[[#This Row],[CODIGO]],ENTRADAS[CANTIDAD])","v":0},{"$f":"SUMIF(SALIDAS[CODIGO],MINIBAR[[#This Row],[CODIGO]],SALIDAS[CANTIDAD])","v":0}]
["BM","MANZANA",{"$f":"+MINIBAR[[#This Row],[ENTRADAS]]-MINIBAR[[#This Row],[SALIDAS]]","v":0},{"$f":"SUMIF(ENTRADAS[CODIGO],MINIBAR[[#This Row],[CODIGO]],ENTRADAS[CANTIDAD])","v":0},{"$f":"SUMIF(SALIDAS[CODIGO],MINIBAR[[#This Row],[CODIGO]],SALIDAS[CANTIDAD])","v":0}]
["DSCH","CHOCOLATINA",{"$f":"+MINIBAR[[#This Row],[ENTRADAS]]-MINIBAR[[#This Row],[SALIDAS]]","v":0},{"$f":"SUMIF(ENTRADAS[CODIGO],MINIBAR[[#This Row],[CODIGO]],ENTRADAS[CANTIDAD])","v":0},{"$f":"SUMIF(SALIDAS[CODIGO],MINIBAR[[#This Row],[CODIGO]],SALIDAS[CANTIDAD])","v":0}]
["DSD","DORITOS",{"$f":"+MINIBAR[[#This Row],[ENTRADAS]]-MINIBAR[[#This Row],[SALIDAS]]","v":0},{"$f":"SUMIF(ENTRADAS[CODIGO],MINIBAR[[#This Row],[CODIGO]],ENTRADAS[CANTIDAD])","v":0},{"$f":"SUMIF(SALIDAS[CODIGO],MINIBAR[[#This Row],[CODIGO]],SALIDAS[CANTIDAD])","v":0}]
["DSC","COCOSETTE",{"$f":"+MINIBAR[[#This Row],[ENTRADAS]]-MINIBAR[[#This Row],[SALIDAS]]","v":0},{"$f":"SUMIF(ENTRADAS[CODIGO],MINIBAR[[#This Row],[CODIGO]],ENTRADAS[CANTIDAD])","v":0},{"$f":"SUMIF(SALIDAS[CODIGO],MINIBAR[[#This Row],[CODIGO]],SALIDAS[CANTIDAD])","v":0}]
["DSGT","GALLETA TOSH",{"$f":"+MINIBAR[[#This Row],[ENTRADAS]]-MINIBAR[[#This Row],[SALIDAS]]","v":0},{"$f":"SUMIF(ENTRADAS[CODIGO],MINIBAR[[#This Row],[CODIGO]],ENTRADAS[CANTIDAD])","v":0},{"$f":"SUMIF(SALIDAS[CODIGO],MINIBAR[[#This Row],[CODIGO]],SALIDAS[CANTIDAD])","v":0}]
["DSP","PASABOCAS",{"$f":"+MINIBAR[[#This Row],[ENTRADAS]]-MINIBAR[[#This Row],[SALIDAS]]","v":0},{"$f":"SUMIF(ENTRADAS[CODIGO],MINIBAR[[#This Row],[CODIGO]],ENTRADAS[CANTIDAD])","v":0},{"$f":"SUMIF(SALIDAS[CODIGO],MINIBAR[[#This Row],[CODIGO]],SALIDAS[CANTIDAD])","v":0}]
["DSSV","SALCHICHAS VIENA",{"$f":"+MINIBAR[[#This Row],[ENTRADAS]]-MINIBAR[[#This Row],[SALIDAS]]","v":0},{"$f":"SUMIF(ENTRADAS[CODIGO],MINIBAR[[#This Row],[CODIGO]],ENTRADAS[CANTIDAD])","v":0},{"$f":"SUMIF(SALIDAS[CODIGO],MINIBAR[[#This Row],[CODIGO]],SALIDAS[CANTIDAD])","v":0}]
["DSCHI","CHICLETS",{"$f":"+MINIBAR[[#This Row],[ENTRADAS]]-MINIBAR[[#This Row],[SALIDAS]]","v":0},{"$f":"SUMIF(ENTRADAS[CODIGO],MINIBAR[[#This Row],[CODIGO]],ENTRADAS[CANTIDAD])","v":0},{"$f":"SUMIF(SALIDAS[CODIGO],MINIBAR[[#This Row],[CODIGO]],SALIDAS[CANTIDAD])","v":0}]
["DSL","LECHERA",{"$f":"+MINIBAR[[#This Row],[ENTRADAS]]-MINIBAR[[#This Row],[SALIDAS]]","v":0},{"$f":"SUMIF(ENTRADAS[CODIGO],MINIBAR[[#This Row],[CODIGO]],ENTRADAS[CANTIDAD])","v":0},{"$f":"SUMIF(SALIDAS[CODIGO],MINIBAR[[#This Row],[CODIGO]],SALIDAS[CANTIDAD])","v":0}]
["DSMS","MANI SALADO",{"$f":"+MINIBAR[[#This Row],[ENTRADAS]]-MINIBAR[[#This Row],[SALIDAS]]","v":0},{"$f":"SUMIF(ENTRADAS[CODIGO],MINIBAR[[#This Row],[CODIGO]],ENTRADAS[CANTIDAD])","v":0},{"$f":"SUMIF(SALIDAS[CODIGO],MINIBAR[[#This Row],[CODIGO]],SALIDAS[CANTIDAD])","v":0}]
["DSH","HALLS",{"$f":"+MINIBAR[[#This Row],[ENTRADAS]]-MINIBAR[[#This Row],[SALIDAS]]","v":0},{"$f":"SUMIF(ENTRADAS[CODIGO],MINIBAR[[#This Row],[CODIGO]],ENTRADAS[CANTIDAD])","v":0},{"$f":"SUMIF(SALIDAS[CODIGO],MINIBAR[[#This Row],[CODIGO]],SALIDAS[CANTIDAD])","v":0}]
["APPB","PRESTOBARBA",{"$f":"+MINIBAR[[#This Row],[ENTRADAS]]-MINIBAR[[#This Row],[SALIDAS]]","v":0},{"$f":"SUMIF(ENTRADAS[CODIGO],MINIBAR[[#This Row],[CODIGO]],ENTRADAS[CANTIDAD])","v":0},{"$f":"SUMIF(SALIDAS[CODIGO],MINIBAR[[#This Row],[CODIGO]],SALIDAS[CANTIDAD])","v":0}]
["APCDD","CEPILLO DE DIENTES",{"$f":"+MINIBAR[[#This Row],[ENTRADAS]]-MINIBAR[[#This Row],[SALIDAS]]","v":0},{"$f":"SUMIF(ENTRADAS[CODIGO],MINIBAR[[#This Row],[CODIGO]],ENTRADAS[CANTIDAD])","v":0},{"$f":"SUMIF(SALIDAS[CODIGO],MINIBAR[[#This Row],[CODIGO]],SALIDAS[CANTIDAD])","v":0}]
["APCD","CREMA DENTAL",{"$f":"+MINIBAR[[#This Row],[ENTRADAS]]-MINIBAR[[#This Row],[SALIDAS]]","v":0},{"$f":"SUMIF(ENTRADAS[CODIGO],MINIBAR[[#This Row],[CODIGO]],ENTRADAS[CANTIDAD])","v":0},{"$f":"SUMIF(SALIDAS[CODIGO],MINIBAR[[#This Row],[CODIGO]],SALIDAS[CANTIDAD])","v":0}]
["APS","SHAMPOO",{"$f":"+MINIBAR[[#This Row],[ENTRADAS]]-MINIBAR[[#This Row],[SALIDAS]]","v":0},{"$f":"SUMIF(ENTRADAS[CODIGO],MINIBAR[[#This Row],[CODIGO]],ENTRADAS[CANTIDAD])","v":0},{"$f":"SUMIF(SALIDAS[CODIGO],MINIBAR[[#This Row],[CODIGO]],SALIDAS[CANTIDAD])","v":0}]
["APA","ACONDICIONADOR",{"$f":"+MINIBAR[[#This Row],[ENTRADAS]]-MINIBAR[[#This Row],[SALIDAS]]","v":0},{"$f":"SUMIF(ENTRADAS[CODIGO],MINIBAR[[#This Row],[CODIGO]],ENTRADAS[CANTIDAD])","v":0},{"$f":"SUMIF(SALIDAS[CODIGO],MINIBAR[[#This Row],[CODIGO]],SALIDAS[CANTIDAD])","v":0}]
["APD","DESODORANTE",{"$f":"+MINIBAR[[#This Row],[ENTRADAS]]-MINIBAR[[#This Row],[SALIDAS]]","v":0},{"$f":"SUMIF(ENTRADAS[CODIGO],MINIBAR[[#This Row],[CODIGO]],ENTRADAS[CANTIDAD])","v":0},{"$f":"SUMIF(SALIDAS[CODIGO],MINIBAR[[#This Row],[CODIGO]],SALIDAS[CANTIDAD])","v":0}]
["APP","PRESERVATIVO",{"$f":"+MINIBAR[[#This Row],[ENTRADAS]]-MINIBAR[[#This Row],[SALIDAS]]","v":0},{"$f":"SUMIF(ENTRADAS[CODIGO],MINIBAR[[#This Row],[CODIGO]],ENTRADAS[CANTIDAD])","v":0},{"$f":"SUMIF(SALIDAS[CODIGO],MINIBAR[[#This Row],[CODIGO]],SALIDAS[CANTIDAD])","v":0}]

{"sheet":"ENTRADAS Y SALIDAS","index":1,"n_rows":8,"n_cols":9,"rows_kept":8,"cut":false,"hidden":false,"merged":[[4,0,5,3],[4,5,5,8]]}
[]
[null,null,null,"ESPACIO PARA LOGO DE LA EMPRESA"]
[null,"VOLVER A"]
[null,"INVENTARIO"]
["ENTRADAS",null,null,null,null,"SALIDAS"]
[]
["FECHA","CODIGO","PRODUCTO","CANTIDAD",null,"FECHA","CODIGO","PRODUCTO","CANTIDAD"]
[null,"BC",null,2]